fUSD/lending_fUSD_20250202
["ID","MTS","AMOUNT","RATE_DAILY","PERIOD"]
[351278973,1738505504190,-356.81965519,0.00011917,2]
[351278974,1738505504200,-241.08777322,0.00011917,2]
[351278975,1738505504211,-821.68,0.00011917,2]
[351278976,1738505504221,-549.88,0.00011917,2]
[351278977,1738505504231,-500.0,0.00011917,2]
[351278978,1738505504241,-500.0,0.00011917,2]
[351278979,1738505504250,-703.15,0.00011917,2]
[351278980,1738505504260,-500.0,0.00011917,2]
[351278981,1738505504270,-828.9,0.00011917,2]
[351278982,1738505504279,-627.47,0.00011917,2]
[351278983,1738505504289,-731.11,0.00011917,2]
[351278984,1738505504298,-253.00039542,0.00011917,2]
[351278985,1738505504308,-500.0,0.00011917,2]
[351278986,1738505504317,-500.0,0.00011917,2]
[351278987,1738505504326,-500.0,0.00011917,2]
[351278988,1738505504335,-592.69,0.00011917,2]
[351278989,1738505504345,-500.0,0.00011917,2]
[351278990,1738505504354,-500.0,0.00011917,2]
[351278991,1738505504363,-151.0,0.00011917,2]
[351278992,1738505504373,-500.0,0.00011917,2]
[351278993,1738505504382,-625.97,0.00011917,2]
[351278994,1738505504392,-500.0,0.00011917,2]
[351278995,1738505504401,-500.0,0.00011917,2]
[351278996,1738505504411,-500.0,0.00011917,2]
[351278997,1738505504420,-500.0,0.00011917,2]
[351278998,1738505504430,-661.86,0.00011917,2]
[351278999,1738505504440,-552.57,0.00011917,2]
[351279000,1738505504451,-3015.63,0.00011917,2]
[351279001,1738505504463,-500.0,0.00011917,2]
[351279002,1738505504473,-635.12,0.00011917,2]
[351279003,1738505504482,-511.08,0.00011917,2]
[351279004,1738505504492,-1112.86,0.00011917,2]
[351279005,1738505504502,-910.85,0.00011917,2]
[351279006,1738505504511,-500.0,0.00011917,2]
[351279007,1738505504522,-500.0,0.00011917,2]
[351279008,1738505504535,-500.0,0.00011917,2]
[351279009,1738505504546,-510.20249349,0.00011917,2]
[351279010,1738505504555,-738.14,0.00011917,2]
[351279011,1738505504564,-500.0,0.00011917,2]
[351279012,1738505504574,-1482.76,0.00011917,2]
[351279013,1738505504584,-500.0,0.00011917,2]
[351279014,1738505504593,-500.0,0.00011917,2]
[351279015,1738505504603,-504.51258651,0.00011917,2]
[351279016,1738505504614,-500.0,0.00011917,2]
[351279017,1738505504624,-545.77,0.00011917,2]
[351279018,1738505504634,-500.0,0.00011917,2]
[351279019,1738505504643,-735.2,0.00011917,2]
[351279020,1738505504653,-165.53918589,0.00011917,2]
[351279021,1738505504662,-717.38,0.00011917,2]
[351279022,1738505504672,-500.0,0.00011917,2]
[351279023,1738505504681,-500.0,0.00011917,2]
[351279024,1738505504690,-2333.39,0.00011917,2]
[351279025,1738505504700,-618.28,0.00011917,2]
[351279026,1738505504709,-510.51617379,0.00011917,2]
[351279027,1738505504719,-500.0,0.00011917,2]
[351279028,1738505504728,-471.09447979,0.00011917,2]
[351279029,1738505504738,-2305.89,0.00011917,2]
[351279030,1738505504747,-703.3,0.00011917,2]
[351279031,1738505504756,-2217.46,0.00011917,2]
[351279032,1738505504766,-573.42,0.00011917,2]
[351279033,1738505504775,-500.0,0.00011917,2]
[351279034,1738505504784,-500.0,0.00011917,2]
[351279035,1738505504793,-2053.36,0.00011917,2]
[351279036,1738505504803,-1106.04,0.00011917,2]
[351279037,1738505504812,-2139.13,0.00011917,2]
[351279038,1738505504821,-500.0,0.00011917,2]
[351279039,1738505504831,-500.0,0.00011917,2]
[351279040,1738505504839,-500.0,0.00011917,2]
[351279041,1738505504849,-1316.15,0.00011917,2]
[351279042,1738505504858,-500.0,0.00011917,2]
[351279043,1738505504867,-500.0,0.00011917,2]
[351279044,1738505504876,-500.0,0.00011917,2]
[351279045,1738505504886,-548.83,0.00011917,2]
[351279046,1738505504895,-553.21,0.00011917,2]
[351279047,1738505504904,-525.3,0.00011917,2]
[351279048,1738505504913,-500.0,0.00011917,2]
[351279049,1738505504923,-2325.54,0.00011917,2]
[351279050,1738505504932,-1109.74,0.00011917,2]
[351279051,1738505504942,-500.44,0.00011917,2]
[351279052,1738505504951,-681.73,0.00011917,2]
[351279053,1738505504961,-677.93,0.00011917,2]
[351279054,1738505504971,-500.0,0.00011917,2]
[351279055,1738505504981,-513.34,0.00011917,2]
[351279056,1738505504990,-500.0,0.00011917,2]
[351279057,1738505505000,-500.0,0.00011917,2]
[351279058,1738505505009,-1154.2,0.00011917,2]
[351279059,1738505505018,-2022.69,0.00011917,2]
[351279060,1738505505027,-685.35,0.00011917,2]
[351279061,1738505505037,-500.0,0.00011917,2]
[351279062,1738505505047,-500.0,0.00011917,2]
[351279063,1738505505056,-500.0,0.00011917,2]
[351279064,1738505505066,-159.9075796,0.00011917,2]
[351279065,1738505505077,-550.64,0.00011917,2]
[351279066,1738505505088,-500.0,0.00011917,2]
[351279067,1738505505099,-1342.11,0.00011917,2]
[351279068,1738505505110,-500.0,0.00011917,2]
[351279069,1738505505121,-2093.39,0.00011917,2]
[351279070,1738505505132,-880.18,0.00011917,2]
[351279071,1738505505144,-1643.92,0.00011917,2]
[351279072,1738505505155,-500.0,0.00011917,2]
[351279073,1738505505167,-793.33,0.00011917,2]
[351279074,1738505505176,-500.0,0.00011917,2]
[351279075,1738505505188,-500.0,0.00011917,2]
[351279076,1738505505200,-500.0,0.00011917,2]
[351279077,1738505505213,-1232.16,0.00011917,2]
[351279078,1738505505223,-500.0,0.00011917,2]
[351279079,1738505505233,-588.54,0.00011917,2]
[351279080,1738505505243,-500.0,0.00011917,2]
[351279081,1738505505253,-534.34,0.00011917,2]
[351279082,1738505505450,-538.87,0.00011917,2]
[351279083,1738505505478,-793.28,0.00011917,2]
[351279084,1738505505487,-500.0,0.00011917,2]
[351279085,1738505505497,-1592.88,0.00011917,2]
[351279086,1738505505507,-616.53,0.00011917,2]
[351279087,1738505505516,-500.0,0.00011917,2]
[351279088,1738505505529,-500.0,0.00011917,2]
[351279089,1738505505539,-1854.87,0.00011917,2]
[351279090,1738505505549,-1690.33,0.00011917,2]
[351279091,1738505505559,-534.43,0.00011917,2]
[351279092,1738505505570,-500.0,0.00011917,2]
[351279093,1738505505580,-500.0,0.00011917,2]
[351279094,1738505505589,-514.30332106,0.00011917,2]
[351279095,1738505505599,-508.93,0.00011917,2]
[351279096,1738505505610,-500.0,0.00011917,2]
[351279097,1738505505620,-637.72,0.00011917,2]
[351279098,1738505505630,-1150.84,0.00011917,2]
[351279099,1738505505640,-508.66,0.00011917,2]
[351279100,1738505505650,-586.07,0.00011917,2]
[351279101,1738505505659,-500.0,0.00011917,2]
[351279102,1738505505669,-800.25,0.00011917,2]
[351279103,1738505505678,-731.54,0.00011917,2]
[351279104,1738505505688,-1305.07,0.00011917,2]
[351279105,1738505505698,-1841.9,0.00011917,2]
[351279106,1738505505707,-734.22,0.00011917,2]
[351279107,1738505505721,-500.0,0.00011917,2]
[351279108,1738505505730,-619.12125048,0.00011917,2]
[351279109,1738505505739,-1731.58,0.00011917,2]
[351279110,1738505505749,-573.1,0.00011917,2]
[351279111,1738505505758,-500.0,0.00011917,2]
[351279112,1738505505767,-500.0,0.00011917,2]
[351279113,1738505505777,-1366.78,0.00011917,2]
[351279114,1738505505786,-500.0,0.00011917,2]
[351279115,1738505505796,-500.0,0.00011917,2]
[351279116,1738505505805,-1447.06,0.00011917,2]
[351279117,1738505505815,-500.0,0.00011917,2]
[351279118,1738505505824,-955.56,0.00011917,2]
[351279119,1738505505834,-161.5038213,0.00011917,2]
[351279120,1738505505844,-521.42,0.00011917,2]
[351279121,1738505505853,-904.27,0.00011917,2]
[351279122,1738505505863,-500.0,0.00011917,2]
[351279123,1738505505872,-854.39,0.00011917,2]
[351279124,1738505505881,-500.0,0.00011917,2]
[351279125,1738505505890,-2762.56,0.00011917,2]
[351279126,1738505505900,-500.0,0.00011917,2]
[351279127,1738505505909,-500.0,0.00011917,2]
[351279128,1738505505918,-666.98,0.00011917,2]
[351279129,1738505505927,-783.0,0.00011917,2]
[351279130,1738505505937,-500.0,0.00011917,2]
[351279131,1738505505946,-2104.01,0.00011917,2]
[351279132,1738505505955,-2287.85,0.00011917,2]
[351279133,1738505505966,-500.0,0.00011917,2]
[351279134,1738505505975,-944.74,0.00011917,2]
[351279135,1738505505985,-505.82,0.00011917,2]
[351279136,1738505505995,-738.27,0.00011917,2]
[351279137,1738505506004,-500.0,0.00011917,2]
[351279138,1738505506013,-1519.92,0.00011917,2]
[351279139,1738505506022,-1297.85,0.00011917,2]
[351279140,1738505506031,-500.0,0.00011917,2]
[351279141,1738505506041,-500.0,0.00011917,2]
[351279142,1738505506050,-500.0,0.00011917,2]
[351279143,1738505506059,-500.0,0.00011917,2]
[351279144,1738505506068,-500.0,0.00011917,2]
[351279145,1738505506078,-500.0,0.00011917,2]
[351279146,1738505506087,-643.77,0.00011917,2]
[351279147,1738505506096,-784.02,0.00011917,2]
[351279148,1738505506106,-500.0,0.00011917,2]
[351279149,1738505506116,-500.0,0.00011917,2]
[351279150,1738505506125,-500.0,0.00011917,2]
[351279151,1738505506134,-500.0,0.00011917,2]
[351279152,1738505506144,-500.0,0.00011917,2]
[351279153,1738505506153,-500.0,0.00011917,2]
[351279154,1738505506163,-529.45,0.00011917,2]
[351279155,1738505506172,-500.0,0.00011917,2]
[351279156,1738505506181,-1418.55,0.00011917,2]
[351279157,1738505506191,-500.0,0.00011917,2]
[351279158,1738505506200,-517.07,0.00011917,2]
[351279159,1738505506210,-500.0,0.00011917,2]
[351279160,1738505506221,-2783.69,0.00011917,2]
[351279161,1738505506230,-1420.23,0.00011917,2]
[351279162,1738505506240,-1225.35,0.00011917,2]
[351279163,1738505506249,-2181.51,0.00011917,2]
[351279164,1738505506259,-500.0,0.00011917,2]
[351279165,1738505506268,-500.0,0.00011917,2]
[351279166,1738505506278,-500.0,0.00011917,2]
[351279167,1738505506287,-942.19,0.00011917,2]
[351279168,1738505506297,-507.86,0.00011917,2]
[351279169,1738505506307,-844.52,0.00011917,2]
[351279170,1738505506317,-416.40130395,0.00011917,2]
[351279171,1738505506327,-500.0,0.00011917,2]
[351279172,1738505506336,-1267.86,0.00011917,2]
[351279173,1738505506345,-500.0,0.00011917,2]
[351279174,1738505506355,-500.0,0.00011917,2]
[351279175,1738505506365,-1642.95,0.00011917,2]
[351279176,1738505506374,-632.5,0.00011917,2]
[351279177,1738505506384,-500.0,0.00011917,2]
[351279178,1738505506393,-717.96,0.00011917,2]
[351279179,1738505506403,-862.89,0.00011917,2]
[351279180,1738505506412,-500.0,0.00011917,2]
[351279181,1738505506422,-978.15,0.00011917,2]
[351279182,1738505506432,-1851.1,0.00011917,2]
[351279183,1738505506441,-591.76,0.00011917,2]
[351279184,1738505506451,-722.67,0.00011917,2]
[351279185,1738505506462,-500.0,0.00011917,2]
[351279186,1738505506472,-500.0,0.00011917,2]
[351279187,1738505506482,-520.38,0.00011917,2]
[351279188,1738505506492,-500.0,0.00011917,2]
[351279189,1738505506501,-500.0,0.00011917,2]
[351279190,1738505506511,-1708.12,0.00011917,2]
[351279191,1738505506520,-523.57,0.00011917,2]
[351279192,1738505506531,-500.0,0.00011917,2]
[351279193,1738505506542,-500.0,0.00011917,2]
[351279194,1738505506552,-760.88,0.00011917,2]
[351279195,1738505506561,-500.0,0.00011917,2]
[351279196,1738505506571,-500.0,0.00011917,2]
[351279197,1738505506581,-500.0,0.00011917,2]
[351279198,1738505506591,-811.43,0.00011917,2]
[351279199,1738505506603,-1175.0,0.00011917,2]
[351279200,1738505506612,-1373.61,0.00011917,2]
[351279201,1738505506622,-1105.09,0.00011917,2]
[351279202,1738505506631,-747.24,0.00011917,2]
[351279203,1738505506641,-1419.66,0.00011917,2]
[351279204,1738505506650,-899.67,0.00011917,2]
[351279205,1738505506659,-500.0,0.00011917,2]
[351279206,1738505506669,-500.0,0.00011917,2]
[351279207,1738505506679,-500.0,0.00011917,2]
[351279208,1738505506688,-814.85,0.00011917,2]
[351279209,1738505506698,-967.34,0.00011917,2]
[351279210,1738505506707,-984.06,0.00011917,2]
[351279211,1738505506719,-507.37842798,0.00011917,2]
[351279212,1738505506729,-709.72,0.00011917,2]
[351279213,1738505506739,-500.0,0.00011917,2]
[351279214,1738505506748,-580.72,0.00011917,2]
[351279215,1738505506758,-500.0,0.00011917,2]
[351279216,1738505506767,-509.47,0.00011917,2]
[351279217,1738505506777,-1025.92,0.00011917,2]
[351279218,1738505506787,-1529.4,0.00011917,2]
[351279219,1738505506796,-522.03221252,0.00011917,2]
[351279220,1738505506806,-500.0,0.00011917,2]
[351279221,1738505506816,-736.8,0.00011917,2]
[351279222,1738505506825,-500.0,0.00011917,2]
[351279223,1738505506835,-500.0,0.00011917,2]
[351279224,1738505506845,-500.0,0.00011917,2]
[351279225,1738505506855,-500.0,0.00011917,2]
[351279226,1738505506864,-500.0,0.00011917,2]
[351279227,1738505506874,-500.0,0.00011917,2]
[351279228,1738505506883,-500.0,0.00011917,2]
[351279229,1738505506893,-794.58,0.00011917,2]
[351279230,1738505506903,-500.0,0.00011917,2]
[351279231,1738505506912,-515.19,0.00011917,2]
[351279232,1738505506922,-551.09,0.00011917,2]
[351279233,1738505506931,-508.10023301,0.00011917,2]
[351279234,1738505506940,-500.0,0.00011917,2]
[351279235,1738505506950,-1457.11,0.00011917,2]
[351279236,1738505506960,-500.0,0.00011917,2]
[351279237,1738505506970,-414.52884245,0.00011917,2]
[351279238,1738505506979,-500.0,0.00011917,2]
[351279239,1738505506989,-848.94,0.00011917,2]
[351279240,1738505506998,-562.76,0.00011917,2]
[351279241,1738505507008,-1457.16,0.00011917,2]
[351279242,1738505507017,-512.04,0.00011917,2]
[351279243,1738505507027,-500.0,0.00011917,2]
[351279244,1738505507036,-500.0,0.00011917,2]
[351279245,1738505507046,-500.0,0.00011917,2]
[351279246,1738505507056,-1032.24,0.00011917,2]
[351279247,1738505507066,-1061.96,0.00011917,2]
[351279248,1738505507075,-510.71,0.00011917,2]
[351279249,1738505507085,-500.0,0.00011917,2]
[351279250,1738505507094,-500.0,0.00011917,2]
[351279251,1738505507104,-1015.65,0.00011917,2]
[351279252,1738505507114,-679.22,0.00011917,2]
[351279253,1738505507123,-1177.9,0.00011917,2]
[351279254,1738505507133,-500.0,0.00011917,2]
[351279255,1738505507142,-500.0,0.00011917,2]
[351279256,1738505507152,-584.42,0.00011917,2]
[351279257,1738505507162,-1657.79,0.00011917,2]
[351279258,1738505507171,-1057.32,0.00011917,2]
[351279259,1738505507181,-500.0,0.00011917,2]
[351279260,1738505507191,-500.0,0.00011917,2]
[351279261,1738505507200,-500.0,0.00011917,2]
[351279262,1738505507210,-737.32,0.00011917,2]
[351279263,1738505507220,-865.79,0.00011917,2]
[351279264,1738505507230,-193.55963669,0.00011917,2]
[351279265,1738505507239,-1316.4,0.00011917,2]
[351279266,1738505507249,-500.0,0.00011917,2]
[351279267,1738505507258,-671.26,0.00011917,2]
[351279268,1738505507268,-751.62,0.00011917,2]
[351279269,1738505507277,-750.62,0.00011917,2]
[351279270,1738505507287,-1011.53,0.00011917,2]
[351279271,1738505507296,-500.0,0.00011917,2]
[351279272,1738505507306,-1248.28,0.00011917,2]
[351279273,1738505507316,-519.27,0.00011917,2]
[351279274,1738505507325,-500.0,0.00011917,2]
[351279275,1738505507335,-775.41,0.00011917,2]
[351279276,1738505507345,-500.0,0.00011917,2]
[351279277,1738505507354,-500.0,0.00011917,2]
[351279278,1738505507363,-650.78,0.00011917,2]
[351279279,1738505507373,-500.0,0.00011917,2]
[351279280,1738505507382,-520.64804141,0.00011917,2]
[351279281,1738505507392,-787.2,0.00011917,2]
[351279282,1738505507401,-500.0,0.00011917,2]
[351279283,1738505507411,-500.0,0.00011917,2]
[351279284,1738505507421,-1398.59,0.00011917,2]
[351279285,1738505507431,-2098.34,0.00011917,2]
[351279286,1738505507440,-500.0,0.00011917,2]
[351279287,1738505507449,-1717.3,0.00011917,2]
[351279288,1738505507458,-535.92,0.00011917,2]
[351279289,1738505507469,-500.0,0.00011917,2]
[351279290,1738505507479,-500.0,0.00011917,2]
[351279291,1738505507489,-520.83,0.00011917,2]
[351279292,1738505507499,-500.0,0.00011917,2]
[351279293,1738505507509,-500.0,0.00011917,2]
[351279294,1738505507519,-1388.03,0.00011917,2]
[351279295,1738505507531,-696.21,0.00011917,2]
[351279296,1738505507542,-1438.93,0.00011917,2]
[351279297,1738505507551,-638.42,0.00011917,2]
[351279298,1738505507561,-1523.64,0.00011917,2]
[351279299,1738505507573,-500.0,0.00011917,2]
[351279300,1738505507582,-500.0,0.00011917,2]
[351279301,1738505507592,-1164.79,0.00011917,2]
[351279302,1738505507601,-500.0,0.00011917,2]
[351279303,1738505507612,-2008.34,0.00011917,2]
[351279304,1738505507621,-500.0,0.00011917,2]
[351279305,1738505507631,-867.5,0.00011917,2]
[351279306,1738505507640,-500.0,0.00011917,2]
[351279307,1738505507649,-272.83395882,0.00011917,2]
[351279308,1738505507659,-930.83,0.00011917,2]
[351279309,1738505507668,-1142.86,0.00011917,2]
[351279310,1738505507677,-1063.97,0.00011917,2]
[351279311,1738505507688,-500.0,0.00011917,2]
[351279312,1738505507697,-5963.38,0.00011917,2]
[351279313,1738505507707,-528.98,0.00011917,2]
[351279314,1738505507718,-632.65,0.00011917,2]
[351279315,1738505507728,-500.0,0.00011917,2]
[351279316,1738505507738,-939.46,0.00011917,2]
[351279317,1738505507747,-500.0,0.00011917,2]
[351279318,1738505507757,-2575.73,0.00011917,2]
[351279319,1738505507766,-1411.82,0.00011917,2]
[351279320,1738505507775,-500.0,0.00011917,2]
[351279321,1738505507784,-500.0,0.00011917,2]
[351279322,1738505507794,-4332.07,0.00011917,2]
[351279323,1738505507804,-500.0,0.00011917,2]
[351279324,1738505507813,-500.0,0.00011917,2]
[351279325,1738505507822,-623.14,0.00011917,2]
[351279326,1738505507832,-808.47,0.00011917,2]
[351279327,1738505507841,-500.0,0.00011917,2]
[351279328,1738505507851,-500.0,0.00011917,2]
[351279329,1738505507860,-500.0,0.00011917,2]
[351279330,1738505507869,-500.0,0.00011917,2]
[351279331,1738505507879,-1167.23,0.00011917,2]
[351279332,1738505507888,-1073.14,0.00011917,2]
[351279333,1738505507897,-1266.06,0.00011917,2]
[351279334,1738505507907,-500.0,0.00011917,2]
[351279335,1738505507916,-1643.83,0.00011917,2]
[351279336,1738505507925,-1098.43,0.00011917,2]
[351279337,1738505507934,-500.0,0.00011917,2]
[351279338,1738505507943,-2134.84,0.00011917,2]
[351279339,1738505507953,-7531.63,0.00011917,2]
[351279340,1738505507963,-636.47,0.00011917,2]
[351279341,1738505507972,-2806.74,0.00011917,2]
[351279342,1738505507981,-500.0,0.00011917,2]
[351279343,1738505507991,-500.0,0.00011917,2]
[351279344,1738505508000,-4457.82,0.00011917,2]
[351279345,1738505508009,-500.0,0.00011917,2]
[351279346,1738505508018,-1068.36,0.00011917,2]
[351279347,1738505508028,-500.0,0.00011917,2]
[351279348,1738505508037,-1431.15,0.00011917,2]
[351279349,1738505508047,-500.0,0.00011917,2]
[351279350,1738505508057,-3317.75,0.00011917,2]
[351279351,1738505508067,-527.84107959,0.00011917,2]
[351279352,1738505508077,-500.0,0.00011917,2]
[351279353,1738505508086,-500.0,0.00011917,2]
[351279354,1738505508097,-225.26,0.00011917,2]
[351279355,1738505508108,-3236.23,0.00011917,2]
[351279356,1738505508118,-500.0,0.00011917,2]
[351279357,1738505508129,-500.0,0.00011917,2]
[351279358,1738505508139,-500.0,0.00011917,2]
[351279359,1738505508150,-998.58,0.00011917,2]
[351279360,1738505508161,-474.85797144,0.00011917,2]
[351279361,1738505508171,-649.19,0.00011917,2]
[351279362,1738505508181,-3603.07,0.00011917,2]
[351279363,1738505508191,-647.76,0.00011917,2]
[351279364,1738505508202,-518.71,0.00011917,2]
[351279365,1738505508213,-2773.67,0.00011917,2]
[351279366,1738505508223,-500.0,0.00011917,2]
[351279367,1738505508233,-163.10296999,0.00011917,2]
[351279368,1738505508242,-3478.77,0.00011917,2]
[351279369,1738505508252,-1377.07,0.00011917,2]
[351279370,1738505508263,-500.0,0.00011917,2]
[351279371,1738505508272,-1559.79,0.00011917,2]
[351279372,1738505508282,-993.51,0.00011917,2]
[351279373,1738505508291,-1353.14,0.00011917,2]
[351279374,1738505508301,-532.1,0.00011917,2]
[351279375,1738505508310,-5584.57,0.00011917,2]
[351279376,1738505508320,-1889.01,0.00011917,2]
[351279377,1738505508331,-500.0,0.00011917,2]
[351279378,1738505508527,-628.58,0.00011917,2]
[351279379,1738505508556,-500.0,0.00011917,2]
[351279380,1738505508567,-500.0,0.00011917,2]
[351279381,1738505508577,-1706.09,0.00011917,2]
[351279382,1738505508588,-1416.56,0.00011917,2]
[351279383,1738505508598,-966.92,0.00011917,2]
[351279384,1738505508611,-820.07,0.00011917,2]
[351279385,1738505508622,-865.01,0.00011917,2]
[351279386,1738505508631,-555.56,0.00011917,2]
[351279387,1738505508641,-500.0,0.00011917,2]
[351279388,1738505508652,-6599.2,0.00011917,2]
[351279389,1738505508662,-500.0,0.00011917,2]
[351279390,1738505508673,-500.0,0.00011917,2]
[351279391,1738505508683,-4362.97,0.00011917,2]
[351279392,1738505508694,-1475.65,0.00011917,2]
[351279393,1738505508704,-3023.49,0.00011917,2]
[351279394,1738505508715,-500.0,0.00011917,2]
[351279395,1738505508724,-1337.09,0.00011917,2]
[351279396,1738505508734,-786.41,0.00011917,2]
[351279397,1738505508744,-1205.96,0.00011917,2]
[351279398,1738505508754,-1903.11,0.00011917,2]
[351279399,1738505508764,-2817.82,0.00011917,2]
[351279400,1738505508774,-2360.45,0.00011917,2]
[351279401,1738505508784,-500.0,0.00011917,2]
[351279402,1738505508794,-583.26,0.00011917,2]
[351279403,1738505508804,-934.52,0.00011917,2]
[351279404,1738505508814,-1388.22,0.00011917,2]
[351279405,1738505508823,-335.99473701,0.00011917,2]
[351279406,1738505508834,-2432.51,0.00011917,2]
[351279407,1738505508844,-609.67,0.00011917,2]
[351279408,1738505508855,-2243.95,0.00011917,2]
[351279409,1738505508864,-1262.46,0.00011917,2]
[351279410,1738505508874,-2572.68,0.00011917,2]
[351279411,1738505508884,-1950.74,0.00011917,2]
[351279412,1738505508893,-500.0,0.00011917,2]
[351279413,1738505508903,-1181.19,0.00011917,2]
[351279414,1738505508913,-871.86,0.00011917,2]
[351279415,1738505508922,-430.76857531,0.00011917,2]
[351279416,1738505508932,-500.0,0.00011917,2]
[351279417,1738505508943,-1126.88,0.00011917,2]
[351279418,1738505508952,-2805.0,0.00011917,2]
[351279419,1738505508962,-541.6,0.00011917,2]
[351279420,1738505508974,-2478.61,0.00011917,2]
[351279421,1738505508984,-3490.69,0.00011917,2]
[351279422,1738505508993,-1886.99,0.00011917,2]
[351279423,1738505509003,-693.62,0.00011917,2]
[351279424,1738505509012,-1166.42,0.00011917,2]
[351279425,1738505509022,-4718.72,0.00011917,2]
[351279426,1738505509031,-500.0,0.00011917,2]
[351279427,1738505509041,-646.83,0.00011917,2]
[351279428,1738505509050,-500.0,0.00011917,2]
[351279429,1738505509060,-1219.56,0.00011917,2]
[351279430,1738505509070,-516.49001146,0.00011917,2]
[351279431,1738505509079,-1713.43,0.00011917,2]
[351279432,1738505509090,-500.0,0.00011917,2]
[351279433,1738505509099,-764.96,0.00011917,2]
[351279434,1738505509109,-742.31,0.00011917,2]
[351279435,1738505509119,-585.08,0.00011917,2]
[351279436,1738505509128,-5247.94,0.00011917,2]
[351279437,1738505509138,-1545.21,0.00011917,2]
[351279438,1738505509148,-2240.61,0.00011917,2]
[351279439,1738505509158,-5157.65,0.00011917,2]
[351279440,1738505509168,-500.0,0.00011917,2]
[351279441,1738505509178,-1481.58,0.00011917,2]
[351279442,1738505509188,-535.67,0.00011917,2]
[351279443,1738505509198,-1399.19,0.00011917,2]
[351279444,1738505509208,-1485.26,0.00011917,2]
[351279445,1738505509218,-513.02341903,0.00011917,2]
[351279446,1738505509228,-3226.98,0.00011917,2]
[351279447,1738505509239,-1311.36,0.00011917,2]
[351279448,1738505509248,-500.0,0.00011917,2]
[351279449,1738505509259,-500.0,0.00011917,2]
[351279450,1738505509270,-5680.36,0.00011917,2]
[351279451,1738505509280,-500.0,0.00011917,2]
[351279452,1738505509291,-2300.21,0.00011917,2]
[351279453,1738505509302,-2521.42,0.00011917,2]
[351279454,1738505509312,-2782.57,0.00011917,2]
[351279455,1738505509321,-500.0,0.00011917,2]
[351279456,1738505509331,-500.0,0.00011917,2]
[351279457,1738505509340,-1766.1,0.00011917,2]
[351279458,1738505509350,-1697.0,0.00011917,2]
[351279459,1738505509360,-1939.71,0.00011917,2]
[351279460,1738505509371,-627.19,0.00011917,2]
[351279461,1738505509382,-787.48,0.00011917,2]
[351279462,1738505509392,-1300.79,0.00011917,2]
[351279463,1738505509402,-3484.78,0.00011917,2]
[351279464,1738505509412,-500.0,0.00011917,2]
[351279465,1738505509422,-512.49,0.00011917,2]
[351279466,1738505509432,-500.0,0.00011917,2]
[351279467,1738505509442,-1213.23,0.00011917,2]
[351279468,1738505509453,-5629.82,0.00011917,2]
[351279469,1738505509463,-2449.26,0.00011917,2]
[351279470,1738505509474,-758.01,0.00011917,2]
[351279471,1738505509485,-500.0,0.00011917,2]
[351279472,1738505509495,-848.99,0.00011917,2]